[Event "*** SCC Grand Prix: Titled Tuesday Blitz"]
[Site "Chess.com"]
[Date "2020.09.08"]
[Round "1"]
[White "Morshynska"]
[Black "Brave_spirit12"]
[Result "1-0"]
[WhiteElo "2175"]
[BlackElo "2510"]
[TimeControl "180+1"]
[EndTime "10:08:55 PDT"]
[Termination "Morshynska won by resignation"]

1. e4 {[%clk 0:03:00.9]} 1... e6 {[%clk 0:02:59.5]} 2. d4 {[%clk 0:02:59.8]}
2... d5 {[%clk 0:02:58.5]} 3. Nd2 {[%clk 0:03:00.2]} 3... c5 {[%clk 0:02:57.2]}
4. exd5 {[%clk 0:02:59.4]} 4... exd5 {[%clk 0:02:56.9]} 5. Ngf3 {[%clk
0:02:59.6]} 5... Nc6 {[%clk 0:02:56.6]} 6. Bb5 {[%clk 0:02:59.2]} 6... Bd6
{[%clk 0:02:55.2]} 7. O-O {[%clk 0:02:57.8]} 7... Ne7 {[%clk 0:02:54.9]} 8. dxc5
{[%clk 0:02:57.6]} 8... Bxc5 {[%clk 0:02:55.8]} 9. Nb3 {[%clk 0:02:58.2]} 9...
Bd6 {[%clk 0:02:55.6]} 10. Bg5 {[%clk 0:02:54]} 10... f6 {[%clk 0:02:54.9]} 11.
Bh4 {[%clk 0:02:53.7]} 11... O-O {[%clk 0:02:54.8]} 12. Bg3 {[%clk 0:02:51.8]}
12... Ne5 {[%clk 0:02:52.1]} 13. Be2 {[%clk 0:02:35.6]} 13... Be6 {[%clk
0:02:45.1]} 14. Nfd4 {[%clk 0:02:26.7]} 14... Bf7 {[%clk 0:02:45.3]} 15. Re1
{[%clk 0:02:07.1]} 15... Nc4 {[%clk 0:02:25.1]} 16. Rb1 {[%clk 0:01:46.9]} 16...
Be5 {[%clk 0:02:00.5]} 17. c3 {[%clk 0:01:36.2]} 17... Qb6 {[%clk 0:01:47.1]}
18. Bd3 {[%clk 0:01:25.4]} 18... a5 {[%clk 0:01:38.5]} 19. Qc2 {[%clk
0:01:22.7]} 19... Bg6 {[%clk 0:01:35.1]} 20. Bxg6 {[%clk 0:01:01.6]} 20... Nxg6
{[%clk 0:01:36]} 21. a4 {[%clk 0:00:54.6]} 21... Rfe8 {[%clk 0:01:26.8]} 22. Nb5
{[%clk 0:00:47.1]} 22... Rac8 {[%clk 0:00:56.8]} 23. Qd3 {[%clk 0:00:32.7]}
23... Red8 {[%clk 0:00:48.7]} 24. Re2 {[%clk 0:00:28.1]} 24... Kh8 {[%clk
0:00:33.9]} 25. N3d4 {[%clk 0:00:27.3]} 25... Bxg3 {[%clk 0:00:31]} 26. hxg3
{[%clk 0:00:26.5]} 26... Nge5 {[%clk 0:00:31]} 27. Qf5 {[%clk 0:00:24.2]} 27...
g6 {[%clk 0:00:26.7]} 28. Qe6 {[%clk 0:00:24]} 28... Qxe6 {[%clk 0:00:25.2]} 29.
Nxe6 {[%clk 0:00:24.9]} 29... Re8 {[%clk 0:00:25.7]} 30. Nf4 {[%clk 0:00:22.3]}
30... Rcd8 {[%clk 0:00:22.7]} 31. Kf1 {[%clk 0:00:20.4]} 31... Kg7 {[%clk
0:00:19.2]} 32. Rd1 {[%clk 0:00:20.2]} 32... Nb6 {[%clk 0:00:18]} 33. b3 {[%clk
0:00:18.8]} 33... g5 {[%clk 0:00:17.1]} 34. Nd3 {[%clk 0:00:18.3]} 34... Ng4
{[%clk 0:00:13.5]} 35. Ne1 {[%clk 0:00:15.3]} 35... Nh2+ {[%clk 0:00:12.1]} 36.
Kg1 {[%clk 0:00:14.7]} 36... Rxe2 {[%clk 0:00:13]} 37. Kxh2 {[%clk 0:00:14.8]}
37... Rxf2 {[%clk 0:00:13.5]} 38. Nd3 {[%clk 0:00:14.1]} 38... Rc2 {[%clk
0:00:13.2]} 39. Nc5 {[%clk 0:00:13.7]} 39... Re8 {[%clk 0:00:13.1]} 40. Nxb7
{[%clk 0:00:12.7]} 40... Ree2 {[%clk 0:00:12.5]} 41. Rg1 {[%clk 0:00:12.8]}
41... Rf2 {[%clk 0:00:11.8]} 42. Nxa5 {[%clk 0:00:12.3]} 42... h5 {[%clk
0:00:09.1]} 43. Nc6 {[%clk 0:00:11.9]} 43... Ra2 {[%clk 0:00:07.7]} 44. a5
{[%clk 0:00:11.4]} 44... Na8 {[%clk 0:00:07.5]} 45. b4 {[%clk 0:00:11.5]} 45...
f5 {[%clk 0:00:07.7]} 46. Nd6 {[%clk 0:00:10.6]} 46... f4 {[%clk 0:00:07.2]} 47.
gxf4 {[%clk 0:00:11.5]} 47... gxf4 {[%clk 0:00:08.1]} 48. Nb7 {[%clk 0:00:09.1]}
48... f3 {[%clk 0:00:07.8]} 49. Nc5 {[%clk 0:00:08.7]} 49... fxg2 {[%clk
0:00:07.8]} 50. a6 {[%clk 0:00:07.8]} 50... h4 {[%clk 0:00:07]} 51. b5 {[%clk
0:00:07.6]} 51... Rf3 {[%clk 0:00:03.7]} 52. Nd7 {[%clk 0:00:07.4]} 52... Rxc3
{[%clk 0:00:03.4]} 53. Nde5 {[%clk 0:00:07]} 53... h3 {[%clk 0:00:02.9]} 54. Nd7
{[%clk 0:00:06.1]} 54... Rc4 {[%clk 0:00:02.5]} 55. Nce5 {[%clk 0:00:05.8]}
55... Rc3 {[%clk 0:00:02.5]} 56. b6 {[%clk 0:00:05.8]} 56... Rb2 {[%clk
0:00:03.4]} 57. b7 {[%clk 0:00:05.9]} 57... Nc7 {[%clk 0:00:03.8]} 58. b8=Q
{[%clk 0:00:04.3]} 58... Rxb8 {[%clk 0:00:03.8]} 59. Nxb8 {[%clk 0:00:05.2]}
59... Rb3 {[%clk 0:00:04.1]} 60. Nec6 {[%clk 0:00:04.7]} 60... d4 {[%clk
0:00:02.7]} 61. a7 {[%clk 0:00:03]} 61... Na8 {[%clk 0:00:02.3]} 62. Nd7 {[%clk
0:00:02.5]} 62... Rb7 {[%clk 0:00:01.9]} 63. Nc5 {[%clk 0:00:01.3]} 63... Rc7
{[%clk 0:00:02.8]} 64. Ne6+ {[%clk 0:00:01.4]} 64... Kf6 {[%clk 0:00:02.4]} 65.
Nxc7 {[%clk 0:00:02.3]} 65... Nxc7 {[%clk 0:00:03.3]} 66. Nxd4 {[%clk
0:00:03.1]} 66... Nd5 {[%clk 0:00:03.3]} 67. Kxh3 {[%clk 0:00:04]} 67... Ne3
{[%clk 0:00:04]} 68. Rxg2 {[%clk 0:00:04.1]} 68... Ke5 {[%clk 0:00:04.9]} 69.
Re2 {[%clk 0:00:04]} 69... Kxd4 {[%clk 0:00:05.8]} 70. Rxe3 {[%clk 0:00:04.9]}
70... Kxe3 {[%clk 0:00:06.5]} 71. a8=Q {[%clk 0:00:05.4]} 71... Kd4 {[%clk
0:00:06.1]} 72. Qc8 {[%clk 0:00:05.5]} 72... Kd3 {[%clk 0:00:06.2]} 73. Qc5
{[%clk 0:00:05.5]} 1-0

[Event "*** SCC Grand Prix: Titled Tuesday Blitz"]
[Site "Chess.com"]
[Date "2020.09.08"]
[Round "1"]
[White "Yuwono"]
[Black "Sankalp_Gupta2003"]
[Result "1/2-1/2"]
[WhiteElo "2401"]
[BlackElo "2743"]
[TimeControl "180+1"]
[EndTime "10:09:04 PDT"]
[Termination "Game drawn by repetition"]

1. d4 {[%clk 0:03:00.1]} 1... Nf6 {[%clk 0:03:00.3]} 2. c4 {[%clk 0:02:55.3]}
2... e6 {[%clk 0:03:00.8]} 3. Nc3 {[%clk 0:02:54.9]} 3... Bb4 {[%clk 0:03:00.2]}
4. Qc2 {[%clk 0:02:55]} 4... d5 {[%clk 0:02:59.9]} 5. Bg5 {[%clk 0:02:52.5]}
5... h6 {[%clk 0:02:57.5]} 6. Bxf6 {[%clk 0:02:51.2]} 6... Qxf6 {[%clk
0:02:58.4]} 7. e3 {[%clk 0:02:51.3]} 7... O-O {[%clk 0:02:57.6]} 8. Nf3 {[%clk
0:02:51.1]} 8... Nc6 {[%clk 0:02:51]} 9. a3 {[%clk 0:02:49]} 9... Bxc3+ {[%clk
0:02:48.2]} 10. Qxc3 {[%clk 0:02:49]} 10... Re8 {[%clk 0:02:47]} 11. cxd5 {[%clk
0:02:44.7]} 11... exd5 {[%clk 0:02:47.9]} 12. Be2 {[%clk 0:02:44.4]} 12... Qg6
{[%clk 0:02:39.6]} 13. b4 {[%clk 0:02:29.6]} 13... a6 {[%clk 0:02:25.3]} 14. O-O
{[%clk 0:02:25.2]} 14... Bh3 {[%clk 0:02:24.5]} 15. Nh4 {[%clk 0:02:23.8]} 15...
Qg5 {[%clk 0:02:24]} 16. g3 {[%clk 0:02:06.1]} 16... Bxf1 {[%clk 0:02:23.1]} 17.
Bxf1 {[%clk 0:02:07]} 17... Re7 {[%clk 0:02:22.9]} 18. Ng2 {[%clk 0:02:06]}
18... Qf6 {[%clk 0:02:17.1]} 19. Nf4 {[%clk 0:02:05.3]} 19... Qd6 {[%clk
0:02:17.5]} 20. Rc1 {[%clk 0:02:04.3]} 20... Rd7 {[%clk 0:02:14.9]} 21. Bg2
{[%clk 0:02:03.2]} 21... Ne7 {[%clk 0:02:12.8]} 22. Bh3 {[%clk 0:01:54.5]} 22...
f5 {[%clk 0:02:12.2]} 23. Nd3 {[%clk 0:01:36.3]} 23... c6 {[%clk 0:02:08]} 24.
Ne5 {[%clk 0:01:24.8]} 24... Rdd8 {[%clk 0:02:04.8]} 25. Qd3 {[%clk 0:01:21.2]}
25... Rf8 {[%clk 0:02:02.7]} 26. Bf1 {[%clk 0:01:06]} 26... Ng6 {[%clk
0:01:52.7]} 27. Nf3 {[%clk 0:01:05.6]} 27... Rae8 {[%clk 0:01:38.7]} 28. Rb1
{[%clk 0:01:03.9]} 28... Qe7 {[%clk 0:01:33.7]} 29. Qd1 {[%clk 0:00:58.2]} 29...
Nh8 {[%clk 0:01:30]} 30. a4 {[%clk 0:00:56.8]} 30... Nf7 {[%clk 0:01:30.5]} 31.
b5 {[%clk 0:00:56.7]} 31... axb5 {[%clk 0:01:29.7]} 32. axb5 {[%clk 0:00:57.6]}
32... Nd6 {[%clk 0:01:29.5]} 33. bxc6 {[%clk 0:00:56.4]} 33... bxc6 {[%clk
0:01:30.4]} 34. Ne5 {[%clk 0:00:56.9]} 34... Qc7 {[%clk 0:01:18.7]} 35. Rc1
{[%clk 0:00:54.7]} 35... Ne4 {[%clk 0:01:15.7]} 36. Rxc6 {[%clk 0:00:51.8]}
36... Qd8 {[%clk 0:01:15.7]} 37. Qb3 {[%clk 0:00:48.3]} 37... Rf6 {[%clk
0:01:13.7]} 38. Bb5 {[%clk 0:00:47.1]} 38... Ref8 {[%clk 0:00:58.7]} 39. Kg2
{[%clk 0:00:44.8]} 39... Kh7 {[%clk 0:00:58.6]} 40. Rc2 {[%clk 0:00:38.8]} 40...
Rb6 {[%clk 0:00:55.4]} 41. Qa4 {[%clk 0:00:37]} 41... Nf6 {[%clk 0:00:41.5]} 42.
Bd3 {[%clk 0:00:32.5]} 42... Qe7 {[%clk 0:00:21.8]} 43. Bxf5+ {[%clk 0:00:31.1]}
43... Kg8 {[%clk 0:00:21.7]} 44. Rc6 {[%clk 0:00:29.7]} 44... Rxc6 {[%clk
0:00:21.4]} 45. Qxc6 {[%clk 0:00:29.5]} 45... Rd8 {[%clk 0:00:15.7]} 46. Ng6
{[%clk 0:00:26]} 46... Qd6 {[%clk 0:00:15.2]} 47. Qb7 {[%clk 0:00:25.1]} 47...
Nd7 {[%clk 0:00:09.5]} 48. Nf4 {[%clk 0:00:23]} 48... Nf6 {[%clk 0:00:06.8]} 49.
Be6+ {[%clk 0:00:21.6]} 49... Kh7 {[%clk 0:00:07.3]} 50. Qf7 {[%clk 0:00:21.3]}
50... Qf8 {[%clk 0:00:04.7]} 51. Qg6+ {[%clk 0:00:20.6]} 51... Kh8 {[%clk
0:00:05]} 52. h4 {[%clk 0:00:21.1]} 52... Qe8 {[%clk 0:00:04.6]} 53. Qf5 {[%clk
0:00:21.2]} 53... Rd6 {[%clk 0:00:02.3]} 54. Ng6+ {[%clk 0:00:21.3]} 54... Qxg6
{[%clk 0:00:01.5]} 55. Qxg6 {[%clk 0:00:20.5]} 55... Rxe6 {[%clk 0:00:02.4]} 56.
Qf7 {[%clk 0:00:20.5]} 56... Re4 {[%clk 0:00:02.5]} 57. Kf3 {[%clk 0:00:15.3]}
57... h5 {[%clk 0:00:03.1]} 58. Ke2 {[%clk 0:00:15.2]} 58... Kh7 {[%clk
0:00:03.6]} 59. f3 {[%clk 0:00:15.4]} 59... Re8 {[%clk 0:00:03.4]} 60. g4 {[%clk
0:00:13.3]} 60... hxg4 {[%clk 0:00:03.2]} 61. fxg4 {[%clk 0:00:13.6]} 61... Ra8
{[%clk 0:00:04.1]} 62. g5 {[%clk 0:00:13.4]} 62... Ne4 {[%clk 0:00:04.6]} 63.
Kf3 {[%clk 0:00:05.2]} 63... Ra2 {[%clk 0:00:02.6]} 64. Qh5+ {[%clk 0:00:05.1]}
64... Kg8 {[%clk 0:00:02.3]} 65. Qe8+ {[%clk 0:00:05.1]} 65... Kh7 {[%clk
0:00:02.5]} 66. Qh5+ {[%clk 0:00:04.6]} 66... Kg8 {[%clk 0:00:02.6]} 67. Qe8+
{[%clk 0:00:05.2]} 67... Kh7 {[%clk 0:00:03]} 68. Kg4 {[%clk 0:00:05.9]} 68...
Rg2+ {[%clk 0:00:02.6]} 69. Kh3 {[%clk 0:00:05.1]} 69... Rg3+ {[%clk 0:00:02.8]}
70. Kh2 {[%clk 0:00:05.6]} 70... Rxe3 {[%clk 0:00:03.7]} 71. Qh5+ {[%clk
0:00:05.2]} 71... Kg8 {[%clk 0:00:03.9]} 72. Qe8+ {[%clk 0:00:06.1]} 72... Kh7
{[%clk 0:00:04.5]} 73. Qh5+ {[%clk 0:00:06.6]} 73... Kg8 {[%clk 0:00:05.2]} 74.
Qe8+ {[%clk 0:00:07.2]} 74... Kh7 {[%clk 0:00:05.9]} 1/2-1/2

[Event "*** SCC Grand Prix: Titled Tuesday Blitz"]
[Site "Chess.com"]
[Date "2020.09.08"]
[Round "1"]
[White "kosya4ok"]
[Black "KatarinaOstojic"]
[Result "1-0"]
[WhiteElo "2672"]
[BlackElo "2336"]
[TimeControl "180+1"]
[EndTime "10:09:04 PDT"]
[Termination "kosya4ok won by resignation"]

1. e3 {[%clk 0:02:35.2]} 1... c5 {[%clk 0:02:58.3]} 2. d4 {[%clk 0:02:34]} 2...
cxd4 {[%clk 0:02:54.3]} 3. exd4 {[%clk 0:02:33.4]} 3... d5 {[%clk 0:02:54.9]} 4.
c4 {[%clk 0:02:33.2]} 4... Nf6 {[%clk 0:02:54.3]} 5. Nc3 {[%clk 0:02:29.5]} 5...
g6 {[%clk 0:02:53.5]} 6. Bg5 {[%clk 0:02:26.1]} 6... Bg7 {[%clk 0:02:50.5]} 7.
Bxf6 {[%clk 0:02:23.2]} 7... Bxf6 {[%clk 0:02:51.4]} 8. Nxd5 {[%clk 0:02:23.1]}
8... Bg7 {[%clk 0:02:50.7]} 9. Nf3 {[%clk 0:02:19.8]} 9... Nc6 {[%clk
0:02:50.4]} 10. Qa4 {[%clk 0:01:25]} 10... O-O {[%clk 0:02:49.3]} 11. O-O-O
{[%clk 0:01:23.2]} 11... Bg4 {[%clk 0:02:45.7]} 12. Be2 {[%clk 0:01:09.1]} 12...
Bxf3 {[%clk 0:02:44.1]} 13. Bxf3 {[%clk 0:01:07.4]} 13... Nxd4 {[%clk
0:02:44.7]} 14. Rhe1 {[%clk 0:00:52.7]} 14... e6 {[%clk 0:02:37.4]} 15. Nc3
{[%clk 0:00:50.9]} 15... Qg5+ {[%clk 0:02:29.8]} 16. Re3 {[%clk 0:00:41.2]}
16... Qh4 {[%clk 0:02:13.5]} 17. Bxb7 {[%clk 0:00:32.8]} 17... Rab8 {[%clk
0:02:08.4]} 18. Rh3 {[%clk 0:00:12.9]} 18... Qf4+ {[%clk 0:02:02.4]} 19. Kb1
{[%clk 0:00:08]} 19... Rxb7 {[%clk 0:02:02.4]} 20. c5 {[%clk 0:00:07.6]} 20...
Qf5+ {[%clk 0:01:58.6]} 21. Rhd3 {[%clk 0:00:06.4]} 21... Qxc5 {[%clk
0:01:57.9]} 22. Ne4 {[%clk 0:00:05.2]} 22... Qb6 {[%clk 0:01:41.4]} 23. b3
{[%clk 0:00:05]} 23... Rc7 {[%clk 0:01:33.1]} 24. Rxd4 {[%clk 0:00:04.4]} 24...
Bxd4 {[%clk 0:01:31.9]} 25. Qxd4 {[%clk 0:00:05.3]} 25... Qxd4 {[%clk
0:01:28.4]} 26. Rxd4 {[%clk 0:00:06.2]} 26... Kg7 {[%clk 0:01:29]} 27. Rd2
{[%clk 0:00:05.9]} 27... Rfc8 {[%clk 0:01:27.6]} 28. Kb2 {[%clk 0:00:05.8]}
28... h6 {[%clk 0:01:26.8]} 29. f3 {[%clk 0:00:04.5]} 29... Rc6 {[%clk
0:01:25.4]} 30. b4 {[%clk 0:00:04.2]} 30... a6 {[%clk 0:01:22.4]} 31. a3 {[%clk
0:00:03.7]} 31... g5 {[%clk 0:01:22.1]} 32. Nc5 {[%clk 0:00:03.3]} 32... a5
{[%clk 0:01:21.1]} 33. Kb3 {[%clk 0:00:03.5]} 33... axb4 {[%clk 0:01:21.2]} 34.
axb4 {[%clk 0:00:04.4]} 34... Kg6 {[%clk 0:01:20.5]} 35. Kc4 {[%clk 0:00:04.3]}
35... Kf6 {[%clk 0:01:16.7]} 36. Rc2 {[%clk 0:00:03.3]} 36... e5 {[%clk
0:01:02.8]} 37. Ra2 {[%clk 0:00:03.7]} 37... Kg6 {[%clk 0:00:58.4]} 38. Ra7
{[%clk 0:00:03.8]} 38... f5 {[%clk 0:00:58.7]} 39. Kb5 {[%clk 0:00:04.1]} 39...
R6c7 {[%clk 0:00:51.9]} 40. Ra6+ {[%clk 0:00:04.5]} 40... Kh7 {[%clk 0:00:46.5]}
41. Re6 {[%clk 0:00:04.9]} 41... e4 {[%clk 0:00:41.5]} 42. fxe4 {[%clk
0:00:05.8]} 42... fxe4 {[%clk 0:00:42.4]} 43. Rxe4 {[%clk 0:00:05.5]} 43... Rb8+
{[%clk 0:00:41.5]} 44. Kc4 {[%clk 0:00:04.3]} 44... Rc6 {[%clk 0:00:41.2]} 45.
Re2 {[%clk 0:00:05.2]} 45... Rcb6 {[%clk 0:00:40.6]} 46. Rb2 {[%clk 0:00:05.8]}
46... Rb5 {[%clk 0:00:41]} 47. Kc3 {[%clk 0:00:04.4]} 47... Kg6 {[%clk
0:00:39.3]} 48. Kc4 {[%clk 0:00:04.8]} 48... h5 {[%clk 0:00:36.2]} 49. Nd3
{[%clk 0:00:05.3]} 49... R5b7 {[%clk 0:00:35.5]} 50. Ra2 {[%clk 0:00:05.8]}
50... Rc7+ {[%clk 0:00:35.5]} 51. Nc5 {[%clk 0:00:06.4]} 51... Rbc8 {[%clk
0:00:35.1]} 52. Ra6+ {[%clk 0:00:05.2]} 52... Kf5 {[%clk 0:00:35.5]} 53. Kd5
{[%clk 0:00:05.5]} 53... Rd8+ {[%clk 0:00:33.1]} 54. Rd6 {[%clk 0:00:05.8]}
54... Rxd6+ {[%clk 0:00:30.6]} 55. Kxd6 {[%clk 0:00:06.7]} 55... Rc8 {[%clk
0:00:31.2]} 56. b5 {[%clk 0:00:07.2]} 56... Rb8 {[%clk 0:00:30.8]} 57. Kc6
{[%clk 0:00:07.5]} 57... Kf4 {[%clk 0:00:31.3]} 58. b6 {[%clk 0:00:06.6]} 58...
Ke3 {[%clk 0:00:31.4]} 59. Ne6 {[%clk 0:00:06.6]} 59... g4 {[%clk 0:00:30.3]}
60. Ng7 {[%clk 0:00:07.2]} 60... h4 {[%clk 0:00:29.4]} 61. Nf5+ {[%clk
0:00:07.3]} 61... Kf2 {[%clk 0:00:27.2]} 62. Nxh4 {[%clk 0:00:07.8]} 62... Rh8
{[%clk 0:00:27.5]} 63. b7 {[%clk 0:00:08.2]} 63... g3 {[%clk 0:00:23.8]} 64. h3
{[%clk 0:00:07.4]} 64... Ke3 {[%clk 0:00:21.7]} 65. Kc7 {[%clk 0:00:06.9]} 65...
Rh7+ {[%clk 0:00:11.9]} 66. Kb6 {[%clk 0:00:06.1]} 66... Rh6+ {[%clk 0:00:12.3]}
67. Ka7 {[%clk 0:00:05.3]} 67... Rh7 {[%clk 0:00:12.6]} 68. Ka8 {[%clk
0:00:04.3]} 68... Rh8+ {[%clk 0:00:12.9]} 69. b8=Q {[%clk 0:00:04.6]} 69...
Rxb8+ {[%clk 0:00:13.8]} 70. Kxb8 {[%clk 0:00:04.8]} 70... Kf4 {[%clk
0:00:14.7]} 71. Kc7 {[%clk 0:00:05]} 71... Kg5 {[%clk 0:00:15]} 72. Nf3+ {[%clk
0:00:05.9]} 72... Kf4 {[%clk 0:00:15.9]} 73. Kd6 {[%clk 0:00:06.1]} 73... Ke3
{[%clk 0:00:16.3]} 74. Nh4 {[%clk 0:00:06.3]} 74... Kf2 {[%clk 0:00:17.2]} 75.
Ke5 {[%clk 0:00:06.5]} 75... Kg1 {[%clk 0:00:16.3]} 76. Kf4 {[%clk 0:00:06.2]}
76... Kh2 {[%clk 0:00:17.2]} 77. Kg4 {[%clk 0:00:06.6]} 77... Kg1 {[%clk
0:00:17.3]} 78. Kxg3 {[%clk 0:00:07.5]} 1-0

[Event "*** SCC Grand Prix: Titled Tuesday Blitz"]
[Site "Chess.com"]
[Date "2020.09.08"]
[Round "1"]
[White "WIDBIFS"]
[Black "JoliyRoger"]
[Result "0-1"]
[WhiteElo "2701"]
[BlackElo "2385"]
[TimeControl "180+1"]
[EndTime "10:09:05 PDT"]
[Termination "JoliyRoger won by resignation"]

1. d4 {[%clk 0:03:00.9]} 1... Nf6 {[%clk 0:02:58.6]} 2. Nf3 {[%clk 0:02:53.8]}
2... e6 {[%clk 0:02:58.5]} 3. Bf4 {[%clk 0:02:50.5]} 3... c5 {[%clk 0:02:57.4]}
4. e3 {[%clk 0:02:50.7]} 4... b6 {[%clk 0:02:56.4]} 5. Nbd2 {[%clk 0:02:45.3]}
5... Bb7 {[%clk 0:02:56.7]} 6. c3 {[%clk 0:02:45.4]} 6... Be7 {[%clk 0:02:56.8]}
7. Bd3 {[%clk 0:02:46]} 7... Nh5 {[%clk 0:02:56.6]} 8. Bg3 {[%clk 0:02:45]} 8...
Nc6 {[%clk 0:02:52.5]} 9. Qe2 {[%clk 0:02:42.9]} 9... a6 {[%clk 0:02:50.9]} 10.
a3 {[%clk 0:02:40.9]} 10... g6 {[%clk 0:02:48.9]} 11. e4 {[%clk 0:02:29.6]}
11... cxd4 {[%clk 0:02:45.5]} 12. cxd4 {[%clk 0:02:30.5]} 12... d5 {[%clk
0:02:29.6]} 13. e5 {[%clk 0:02:27.4]} 13... b5 {[%clk 0:02:26]} 14. h4 {[%clk
0:02:17.2]} 14... Na5 {[%clk 0:02:11.3]} 15. Bh2 {[%clk 0:02:09.1]} 15... Nc4
{[%clk 0:02:09.1]} 16. g4 {[%clk 0:02:09]} 16... Ng7 {[%clk 0:02:05.6]} 17. Rb1
{[%clk 0:01:47.4]} 17... h5 {[%clk 0:01:25.8]} 18. g5 {[%clk 0:01:14.3]} 18...
Qb6 {[%clk 0:01:13.8]} 19. O-O {[%clk 0:01:13.1]} 19... O-O {[%clk 0:01:11.4]}
20. Bf4 {[%clk 0:01:06.4]} 20... Rfc8 {[%clk 0:01:06.9]} 21. Rfd1 {[%clk
0:00:52.1]} 21... a5 {[%clk 0:01:05.4]} 22. Nf1 {[%clk 0:00:50.7]} 22... Ba6
{[%clk 0:01:03.7]} 23. Ne3 {[%clk 0:00:48.2]} 23... Nxe3 {[%clk 0:01:02]} 24.
Bxe3 {[%clk 0:00:44.3]} 24... b4 {[%clk 0:01:00.7]} 25. axb4 {[%clk 0:00:41.1]}
25... Bxd3 {[%clk 0:00:57]} 26. Qxd3 {[%clk 0:00:39.5]} 26... Bxb4 {[%clk
0:00:52.6]} 27. Rdc1 {[%clk 0:00:39]} 27... Nf5 {[%clk 0:00:52]} 28. Kg2 {[%clk
0:00:24.1]} 28... Kg7 {[%clk 0:00:50.9]} 29. Kh3 {[%clk 0:00:23.5]} 29... Qb7
{[%clk 0:00:50.3]} 30. Ng1 {[%clk 0:00:19.9]} 30... Rxc1 {[%clk 0:00:44.3]} 31.
Rxc1 {[%clk 0:00:20.8]} 31... Rc8 {[%clk 0:00:44.2]} 32. Ne2 {[%clk 0:00:20.2]}
32... Rxc1 {[%clk 0:00:43.2]} 33. Nxc1 {[%clk 0:00:20.5]} 33... Qc6 {[%clk
0:00:38.6]} 34. Ne2 {[%clk 0:00:20.8]} 34... Be7 {[%clk 0:00:25.9]} 35. Ng3
{[%clk 0:00:20.5]} 35... Nxg3 {[%clk 0:00:22.3]} 36. Kxg3 {[%clk 0:00:20.8]}
36... a4 {[%clk 0:00:22.1]} 37. Qd1 {[%clk 0:00:17.5]} 37... Qc4 {[%clk
0:00:21.9]} 38. Kf3 {[%clk 0:00:16.3]} 38... Bb4 {[%clk 0:00:22.3]} 39. Qxa4
{[%clk 0:00:13.9]} 39... Kg8 {[%clk 0:00:17.6]} 40. Qd1 {[%clk 0:00:09.6]} 40...
Bf8 {[%clk 0:00:17]} 41. Qe2 {[%clk 0:00:09.9]} 41... Qb3 {[%clk 0:00:16.9]} 42.
Kg2 {[%clk 0:00:09.3]} 42... Bb4 {[%clk 0:00:17.1]} 43. Kh2 {[%clk 0:00:05.5]}
43... Bf8 {[%clk 0:00:16.6]} 44. Kg2 {[%clk 0:00:06]} 44... Bb4 {[%clk
0:00:16.9]} 45. Qb5 {[%clk 0:00:06.6]} 45... Qxb2 {[%clk 0:00:16.5]} 46. Qb8+
{[%clk 0:00:03.3]} 46... Kg7 {[%clk 0:00:16.1]} 47. Qb5 {[%clk 0:00:03.9]} 47...
Qa3 {[%clk 0:00:16]} 48. Qe2 {[%clk 0:00:03.7]} 48... Be7 {[%clk 0:00:16.2]} 49.
Qf3 {[%clk 0:00:03.8]} 49... Qa7 {[%clk 0:00:16.4]} 50. Qe2 {[%clk 0:00:04.1]}
50... Qd7 {[%clk 0:00:16.9]} 51. Qd3 {[%clk 0:00:04.7]} 51... Qc6 {[%clk
0:00:17.2]} 52. Qb3 {[%clk 0:00:05.1]} 52... Qc7 {[%clk 0:00:16.7]} 53. Kf3
{[%clk 0:00:04.4]} 53... Qd7 {[%clk 0:00:17]} 54. Kg2 {[%clk 0:00:04.8]} 54...
Qc7 {[%clk 0:00:17.2]} 55. Kf3 {[%clk 0:00:05.3]} 55... Bf8 {[%clk 0:00:17.7]}
56. Kg2 {[%clk 0:00:05.9]} 56... Kg8 {[%clk 0:00:18.3]} 57. Kf3 {[%clk
0:00:06.5]} 57... Qa7 {[%clk 0:00:18.1]} 58. Kg2 {[%clk 0:00:07]} 58... Qa6
{[%clk 0:00:18.5]} 59. Kf3 {[%clk 0:00:07.5]} 59... Qf1 {[%clk 0:00:18.5]} 60.
Kg3 {[%clk 0:00:03.4]} 60... Qg1+ {[%clk 0:00:18.3]} 61. Kh3 {[%clk 0:00:03.2]}
61... Qg4+ {[%clk 0:00:18.6]} 62. Kh2 {[%clk 0:00:03.9]} 62... Qxh4+ {[%clk
0:00:19.2]} 63. Kg2 {[%clk 0:00:04.8]} 63... Qg4+ {[%clk 0:00:18.8]} 64. Kf1
{[%clk 0:00:05.4]} 64... h4 {[%clk 0:00:18.8]} 65. Bd2 {[%clk 0:00:02.6]} 65...
Qxd4 {[%clk 0:00:18.7]} 66. Qe3 {[%clk 0:00:01.7]} 66... Qc4+ {[%clk 0:00:18.5]}
67. Kg2 {[%clk 0:00:01.9]} 67... Bc5 {[%clk 0:00:18.4]} 68. Qf3 {[%clk
0:00:02.3]} 68... Be7 {[%clk 0:00:16.4]} 69. Bf4 {[%clk 0:00:02.6]} 69... Kg7
{[%clk 0:00:15.2]} 70. Be3 {[%clk 0:00:01.9]} 70... Qd3 {[%clk 0:00:13.4]} 71.
Kh2 {[%clk 0:00:01.7]} 71... Qf5 {[%clk 0:00:12.6]} 72. Qxf5 {[%clk 0:00:01.8]}
72... gxf5 {[%clk 0:00:12.3]} 73. Kh3 {[%clk 0:00:01.7]} 73... Kg6 {[%clk
0:00:12.8]} 74. f4 {[%clk 0:00:02.4]} 74... Bb4 {[%clk 0:00:11.6]} 75. Bd4
{[%clk 0:00:03]} 75... Bd2 {[%clk 0:00:11.4]} 76. Kxh4 {[%clk 0:00:02.4]} 76...
Bxf4 {[%clk 0:00:11.8]} 77. Kh3 {[%clk 0:00:02.4]} 77... Kxg5 {[%clk 0:00:11.8]}
78. Kg2 {[%clk 0:00:03.3]} 0-1